bitfinex/quotes_SOLUSD_20220210
["timestamp","ask_amount","ask_price","bid_price","bid_amount"]
[1644454989803,22.5782,113.47,113.4,58.33959833]
[1644454990203,35.8059,113.47,113.4,58.33959833]
[1644454990803,35.8059,113.47,113.4,71.56759833]
[1644454991803,13.2277,113.47,113.4,71.56759833]
[1644454995010,13.2277,113.47,113.4,67.15959833]
[1644454997614,13.2277,113.47,113.4,71.56659833]
[1644455001115,13.2277,113.47,113.4,67.15959833]
[1644455001317,13.2277,113.47,113.4,59.23459833]
[1644455005019,37.4139,113.47,113.4,59.23459833]
[1644455008419,13.2277,113.47,113.4,59.23459833]
[1644455009721,14.45794149,113.47,113.4,59.23459833]
[1644455010124,13.2277,113.47,113.4,59.23459833]
[1644455010824,13.2277,113.47,113.4,71.69459833]
[1644455011523,14.45634149,113.48,113.4,71.69459833]
[1644455011723,1.23024149,113.49,113.4,71.69459833]
[1644455011923,1.23024149,113.49,113.41,24.3138]
[1644455012223,1.23024149,113.49,113.44,47.17869184]
[1644455012724,14.45534149,113.49,113.44,47.17869184]
[1644455013124,14.45534149,113.49,113.44,60.40289184]
[1644455014526,1.23024149,113.49,113.44,60.40289184]
[1644455015324,22.5324,113.5,113.44,60.40289184]
[1644455015325,23.76264149,113.5,113.44,60.40289184]
[1644455015924,23.76264149,113.5,113.44,84.99309184]
[1644455016625,23.76264149,113.5,113.44,89.39909184]
[1644455017525,1.23024149,113.5,113.44,89.39909184]
[1644455017730,1.23024149,113.52,113.45,1.80171593]
[1644455017927,1.23024149,113.52,113.46,30.0837]
[1644455018128,1.23024149,113.54,113.47,24.1155]
[1644455018326,2.50547628,113.57,113.47,24.1155]
[1644455018327,1.23024149,113.55,113.47,44.37721593]
[1644455018527,1.23024149,113.55,113.48,39.04550118]
[1644455018725,49.97267127,113.56,113.48,51.50550118]
[1644455018925,1.23024149,113.55,113.48,51.50550118]
[1644455019728,1.23024149,113.55,113.49,13.2168]
[1644455020128,1.23024149,113.55,113.48,39.04550118]
[1644455020328,1.23024149,113.54,113.48,39.04550118]
[1644455020552,48.74242978,113.56,113.48,39.04550118]
[1644455020553,1.23024149,113.53,113.48,39.04550118]
[1644455020930,14.45164149,113.53,113.48,39.04550118]
[1644455021832,1.23024149,113.53,113.48,39.04550118]
[1644455022031,1.23024149,113.54,113.48,39.04550118]
[1644455022434,14.45044149,113.54,113.48,39.04550118]
[1644455023034,24.33594149,113.55,113.48,39.04550118]
[1644455023240,1.23024149,113.54,113.48,39.04550118]
[1644455023437,1.23024149,113.56,113.48,52.26500118]
[1644455023737,1.23024149,113.56,113.49,12.46]
[1644455024136,1.23024149,113.57,113.49,12.46]
[1644455024340,39.48896433,113.57,113.49,12.46]
[1644455024536,39.48896433,113.57,113.5,24.2315]
[1644455024737,24.09164149,113.58,113.5,24.2315]
[1644455024936,24.09164149,113.58,113.51,13.2149]
[1644455025740,24.09164149,113.58,113.52,47.67510893]
[1644455025937,24.09164149,113.58,113.52,60.88960893]
[1644455026137,22.8614,113.58,113.52,60.88960893]
[1644455026539,23.86484149,113.59,113.52,60.88960893]
[1644455026739,1.23024149,113.59,113.52,60.88960893]
[1644455026939,61.04729239,113.6,113.52,60.88960893]
[1644455027139,61.04729239,113.6,113.52,65.29160893]
[1644455027540,1.23024149,113.6,113.52,65.29160893]
[1644455027841,25.15984149,113.61,113.55,13.2103]
[1644455028063,25.15984149,113.61,113.55,22.6313]
[1644455028642,25.15984149,113.61,113.56,35.78969218]
[1644455029241,128.74144149,113.62,113.56,35.78969218]
[1644455033846,128.74144149,113.62,113.55,17.6113]
[1644455034648,127.5112,113.62,113.55,13.2103]
[1644455034846,127.5112,113.62,113.56,43.20990234]
[1644455035677,127.5112,113.62,113.54,49.5909]
[1644455036974,127.5112,113.62,113.54,36.3791]
[1644455037173,127.5112,113.62,113.54,23.9191]
[1644455037373,128.74144149,113.62,113.54,23.9191]
[1644455038174,1.23024149,113.61,113.54,23.9191]
[1644455038373,13.2139,113.59,113.54,23.9191]
[1644455039175,37.92079587,113.58,113.54,23.9191]
[1644455040777,51.13489587,113.58,113.54,23.9191]
[1644455041180,51.13489587,113.58,113.52,72.7195799]
[1644455041378,51.13489587,113.58,113.52,96.7647799]
[1644455043681,13.2141,113.58,113.52,96.7647799]
[1644455044580,48.60040458,113.58,113.52,96.7647799]
[1644455045079,13.2141,113.58,113.52,96.7647799]
[1644455045281,1.23024149,113.59,113.52,96.7647799]
[1644455045282,1.23024149,113.59,113.53,4.402]
[1644455045479,1.23024149,113.6,113.54,13.2101]
[1644455045679,1.23024149,113.61,113.55,23.5348]
[1644455046082,1.23024149,113.62,113.56,43.45436513]
[1644455046386,13.2104,113.61,113.56,43.45436513]
[1644455046579,14.44064149,113.61,113.56,43.45436513]
[1644455046780,1.23024149,113.61,113.56,43.45436513]
[1644455046982,1.23024149,113.61,113.57,4.401]
[1644455047181,1.23024149,113.63,113.57,27.98986408]
[1644455047380,1.23024149,113.63,113.57,28.23986408]
[1644455047583,1.23024149,113.64,113.57,30.03643757]
[1644455047785,1.23024149,113.65,113.57,30.03643757]
[1644455047983,1.23024149,113.65,113.58,36.9313]
[1644455048283,1.23024149,113.65,113.6,39.9335988]
[1644455048482,1.23024149,113.65,113.6,64.5825988]
[1644455048782,1.23024149,113.66,113.6,64.5825988]
[1644455049784,1.23024149,113.66,113.6,77.7861988]
[1644455051185,14.43514149,113.66,113.6,77.7861988]
[1644455052892,1.23024149,113.66,113.6,77.7861988]
[1644455053892,36.19896341,113.65,113.6,39.9335988]
[1644455054492,1.23024149,113.66,113.6,39.9335988]
[1644455055394,55.10780917,113.65,113.6,39.9335988]
[1644455055692,56.33805066,113.65,113.6,39.9335988]
[1644455056093,55.10780917,113.65,113.6,39.9335988]
[1644455056692,13.2068,113.65,113.6,39.9335988]
[1644455057093,1.23024149,113.66,113.6,39.9335988]
[1644455057294,1.23024149,113.66,113.6,63.0510988]
[1644455057494,1.23024149,113.67,113.61,4.4]
[1644455057893,1.23024149,113.67,113.61,17.6038]
[1644455058095,1.23024149,113.67,113.61,13.2038]
[1644455058495,67.38891574,113.68,113.61,13.2038]
[1644455058694,37.79824149,113.68,113.61,13.2038]
[1644455058895,37.79824149,113.68,113.61,25.6638]
[1644455059795,37.79824149,113.68,113.61,30.0628]
[1644455060498,37.79824149,113.68,113.61,25.6638]
[1644455060799,1.23024149,113.68,113.61,30.0628]
[1644455060999,1.23024149,113.7,113.61,31.85937349]
[1644455061399,139.18464149,113.71,113.61,31.85937349]
[1644455061599,139.18464149,113.71,113.62,23.3659]
[1644455061798,152.38404149,113.71,113.64,13.1988]
[1644455062002,152.38404149,113.71,113.65,40.34839146]
[1644455062398,115.53024149,113.71,113.65,40.34839146]
[1644455062600,1.23024149,113.72,113.66,12.46]
[1644455062799,1.23024149,113.73,113.66,46.3222]
[1644455063600,73.031773,113.74,113.66,46.3222]
[1644455064402,73.031773,113.74,113.66,50.7192]
[1644455064606,13.199,113.72,113.66,26.16]
[1644455064802,13.199,113.72,113.66,16.857]
[1644455065406,14.42924149,113.72,113.66,16.857]
[1644455065603,14.42924149,113.72,113.66,12.46]
[1644455066202,1.23024149,113.72,113.66,12.46]
[1644455066403,1.23024149,113.73,113.66,25.6574]
[1644455066603,38.45664149,113.74,113.66,25.6574]
[1644455067004,38.45664149,113.74,113.66,48.3731]
[1644455067505,37.17016693,113.73,113.66,48.3731]
[1644455068111,51.59800842,113.73,113.66,35.1757]
[1644455068704,51.59800842,113.73,113.66,12.46]
[1644455068906,1.23024149,113.72,113.66,12.46]
[1644455069107,1.23024149,113.72,113.65,40.34839146]
[1644455069108,13.2006,113.71,113.65,40.34839146]
[1644455069706,14.43084149,113.71,113.65,40.34839146]
[1644455069910,14.43084149,113.71,113.63,12.46]
[1644455070108,14.43084149,113.71,113.63,13.2011]
[1644455070307,14.43084149,113.71,113.62,27.5452]
[1644455070508,128.73084149,113.71,113.62,4.398]
[1644455070711,1.23024149,113.7,113.62,4.398]
[1644455070911,39.34194447,113.69,113.62,4.398]
[1644455071110,13.2061,113.68,113.62,4.398]
[1644455071311,16.6418241,113.68,113.62,4.398]
[1644455071510,16.6418241,113.68,113.61,35.15803302]
[1644455071711,14.43634149,113.68,113.61,35.15803302]
[1644455074613,1.23024149,113.67,113.61,35.15803302]
[1644455074814,1.23024149,113.67,113.61,48.36133302]
[1644455075622,1.23024149,113.67,113.62,4.399]
[1644455076220,1.23024149,113.66,113.62,4.399]
[1644455076521,1.23024149,113.66,113.62,17.6013]
[1644455076719,1.23024149,113.68,113.62,30.0613]
[1644455076935,1.23024149,113.69,113.62,37.4243]
[1644455077136,1.23024149,113.68,113.62,37.4243]
[1644455077335,1.23024149,113.68,113.62,33.0253]
[1644455077545,1.23024149,113.68,113.62,56.3472]
[1644455078337,1.23024149,113.68,113.63,4.399]
[1644455078536,1.23024149,113.68,113.63,17.5999]
[1644455078736,1.23024149,113.68,113.63,13.2009]
[1644455079136,1.23024149,113.68,113.63,21.1179]
[1644455082239,1.20533285,113.68,113.63,21.1179]
[1644455082842,1.20533285,113.68,113.63,7.917]
[1644455083040,1.20533285,113.68,113.62,48.9844]
[1644455083439,141.10047628,113.71,113.62,48.9844]
[1644455083639,141.10047628,113.71,113.62,53.3834]
[1644455083839,13.2016,113.7,113.62,53.3834]
[1644455084042,15.70707628,113.7,113.62,48.9844]
[1644455086344,15.70707628,113.7,113.62,36.5244]
[1644455089345,3.84706786,113.69,113.62,23.3219]
[1644455089546,39.00311924,113.68,113.62,23.3219]
[1644455089746,13.2041,113.67,113.62,23.3219]
[1644455090948,2.50547628,113.69,113.63,4.399]
[1644455091149,3.8470456,113.7,113.63,4.399]
[1644455091350,3.8470456,113.7,113.62,35.9719]
[1644455091749,38.05724907,113.69,113.62,35.9719]
[1644455091951,38.05724907,113.69,113.62,31.5739]
[1644455092150,53.76432535,113.69,113.62,36.5247]
[1644455092551,51.25884907,113.69,113.62,36.5247]
[1644455092950,53.76432535,113.69,113.62,36.5247]
[1644455093152,51.25884907,113.69,113.62,36.5247]
[1644455093553,53.76432535,113.69,113.62,36.5247]
[1644455094452,53.76432535,113.69,113.62,40.9237]
[1644455097153,53.76432535,113.69,113.62,36.5247]
[1644455099054,15.70707628,113.69,113.62,36.5247]
[1644455099254,15.70707628,113.69,113.62,40.9237]
[1644455103961,15.70707628,113.69,113.62,36.5247]
[1644455106161,13.2016,113.69,113.62,36.5247]
[1644455106958,13.2016,113.69,113.63,4.399]
[1644455107158,13.2016,113.69,113.64,13.2003]
[1644455107361,13.2016,113.69,113.65,41.90200893]
[1644455107561,15.70547628,113.7,113.65,41.90200893]
[1644455108159,13.2,113.7,113.65,41.90200893]
[1644455108569,2.50547628,113.71,113.65,55.10200893]
[1644455108861,2.50547628,113.72,113.65,55.10200893]
[1644455109060,2.50547628,113.72,113.65,71.96000893]
[1644455109963,3.84937937,113.73,113.65,71.96000893]
[1644455110162,17.04657937,113.73,113.68,13.1962]
[1644455110362,15.70267628,113.73,113.69,37.9164827]
[1644455110591,15.70267628,113.73,113.66,24.7956]
[1644455111066,3.8479555,113.72,113.65,16.858]
[1644455111265,3.8479555,113.72,113.66,24.4212]
[1644455111466,2.50547628,113.72,113.66,24.4212]
[1644455111765,15.70357628,113.72,113.67,39.8342118]
[1644455112464,13.1981,113.72,113.67,39.8342118]
[1644455113067,15.70357628,113.72,113.67,39.8342118]
[1644455113466,15.70357628,113.72,113.66,37.6192]
[1644455113669,17.90905889,113.72,113.64,24.184]
[1644455113865,17.90905889,113.72,113.62,4.397]
[1644455113866,3.84757642,113.71,113.62,29.2286]
[1644455114067,13.2028,113.69,113.62,24.8316]
[1644455114467,13.2028,113.69,113.63,43.31843644]
[1644455118670,13.2028,113.69,113.63,56.52053644]
[1644455121476,13.2028,113.69,113.63,68.66353644]
[1644455122071,13.199,113.7,113.63,73.06253644]
[1644455122370,35.71561077,113.73,113.66,13.1969]
[1644455122371,38.22108705,113.73,113.66,13.1969]
[1644455122570,38.22108705,113.73,113.67,46.38555195]
[1644455122770,49.83157628,113.74,113.67,46.38555195]
[1644455122974,49.83157628,113.74,113.67,69.77375195]
[1644455123872,13.1969,113.72,113.67,82.97095195]
[1644455125373,13.1969,113.72,113.66,25.6586]
[1644455125597,13.1969,113.72,113.65,4.397]
[1644455125774,39.38638261,113.72,113.65,4.397]
[1644455126378,39.38638261,113.72,113.66,43.25386755]
[1644455127376,41.89185889,113.72,113.66,43.25386755]
[1644455127577,41.89185889,113.72,113.65,17.5966]
[1644455127781,41.89185889,113.72,113.65,13.1996]
[1644455128277,41.89185889,113.72,113.64,13.2009]
[1644455128678,41.89185889,113.72,113.63,24.3749]
[1644455128878,3.84700047,113.71,113.63,24.3749]
[1644455129080,13.203,113.69,113.62,63.29792396]
[1644455129278,36.8682,113.69,113.62,63.29792396]
[1644455129481,2.20548261,113.68,113.62,63.29792396]
[1644455129677,2.20548261,113.68,113.62,76.50122396]
[1644455130582,13.2039,113.67,113.62,40.20332396]
[1644455130779,13.2039,113.67,113.61,29.1047]
[1644455130979,15.40938261,113.67,113.61,29.1047]
[1644455131780,34.84545723,113.66,113.61,70.1277427]
[1644455131991,13.206,113.65,113.61,70.1277427]
[1644455133409,13.206,113.65,113.61,29.1047]
[1644455133608,13.206,113.65,113.58,30.067]
[1644455133807,13.206,113.65,113.58,17.607]
[1644455134410,13.206,113.65,113.59,37.64619524]
[1644455134810,13.206,113.65,113.59,42.04619524]
[1644455136413,13.206,113.65,113.59,37.64619524]
[1644455139119,13.206,113.65,113.59,42.04619524]
[1644455140319,13.206,113.65,113.59,37.64619524]
[1644455141524,24.6325,113.67,113.59,60.36359524]
[1644455141723,13.2048,113.66,113.59,96.12019524]
[1644455141924,24.3082,113.69,113.59,96.12019524]
[1644455142122,47.7491,113.69,113.59,96.12019524]
[1644455142322,86.76993299,113.69,113.59,96.12019524]
[1644455142722,86.76993299,113.69,113.62,13.2028]
[1644455142723,13.2025,113.68,113.62,13.2028]
[1644455142924,13.2025,113.68,113.63,48.26718292]
[1644455144425,13.2025,113.68,113.61,13.2041]
[1644455144825,13.2025,113.68,113.59,35.7566]
[1644455145026,13.2025,113.68,113.59,23.2966]
[1644455145425,13.2025,113.68,113.6,48.07484201]
[1644455145826,13.2025,113.68,113.6,61.28024201]
[1644455148433,13.2025,113.68,113.61,4.399]
[1644455148632,13.2025,113.68,113.61,17.6026]
[1644455149233,13.2025,113.68,113.61,40.3368]
[1644455149836,13.2025,113.68,113.61,35.9378]
[1644455155757,13.2025,113.68,113.61,22.7342]
[1644455156757,13.2025,113.68,113.61,35.9386]
[1644455157763,13.2025,113.68,113.61,48.3986]
[1644455159865,13.2025,113.68,113.61,35.1942]
[1644455160268,13.2025,113.68,113.6,4.399]
[1644455160269,15.40798261,113.68,113.6,4.399]
[1644455160465,17.91345889,113.68,113.58,4.399]
[1644455160665,13.2088,113.65,113.58,4.399]
[1644455161163,43.76187735,113.64,113.58,47.53412127]
[1644455161664,43.76187735,113.64,113.58,3.899]
[1644455161868,13.7263,113.63,113.58,3.899]
[1644455162064,23.1653,113.63,113.58,3.899]
[1644455162263,2.20548261,113.62,113.58,3.899]
[1644455162463,2.20548261,113.62,113.54,43.15027765]
[1644455162867,13.213,113.61,113.54,43.15027765]
[1644455163065,13.213,113.61,113.54,47.55227765]
[1644455163266,13.213,113.61,113.54,60.76457765]
[1644455164067,13.213,113.61,113.54,56.36257765]
[1644455164468,39.02083299,113.6,113.54,56.36257765]
[1644455164669,13.2128,113.59,113.54,56.36257765]
[1644455166070,13.2108,113.6,113.54,56.36257765]
[1644455166573,67.227,113.63,113.54,56.36257765]
[1644455166771,67.227,113.63,113.55,4.401]
[1644455166972,38.05801919,113.64,113.56,13.2091]
[1644455167173,13.2092,113.62,113.56,13.2091]
[1644455171978,23.68968261,113.62,113.55,4.401]
[1644455172179,13.2165,113.6,113.55,4.401]
[1644455172378,0.5187,113.59,113.48,23.0911]
[1644455172578,9.67848261,113.59,113.49,0.024]
[1644455172779,19.06948261,113.58,113.49,0.024]
[1644455172977,81.93200785,113.57,113.47,36.99728505]
[1644455173178,4.404,113.56,113.48,0.024]
[1644455173379,34.89814737,113.55,113.48,0.024]
[1644455173577,13.2196,113.53,113.48,0.024]
[1644455173779,52.83284325,113.53,113.47,36.99728505]
[1644455174477,13.2196,113.53,113.47,36.99728505]
[1644455174878,13.2187,113.54,113.47,36.99728505]
[1644455175078,13.2187,113.54,113.48,0.024]
[1644455175479,58.28318448,113.54,113.48,0.024]
[1644455181183,66.21018448,113.54,113.48,0.024]
[1644455184092,58.28318448,113.54,113.48,0.024]
[1644455189821,13.2187,113.54,113.48,0.024]
[1644455190228,13.2174,113.55,113.49,4.404]
[1644455190423,4.404,113.6,113.49,16.888]
[1644455190625,4.404,113.6,113.5,0.024]
[1644455190825,38.27765968,113.59,113.51,12.46]
[1644455191024,38.27765968,113.59,113.52,38.79868721]
[1644455191225,38.27765968,113.59,113.53,0.024]
[1644455191428,51.49125968,113.59,113.53,13.2365]
[1644455191928,51.49125968,113.59,113.54,36.12620097]
[1644455192325,51.49125968,113.59,113.54,36.15020097]
[1644455192925,13.2136,113.59,113.54,36.15020097]
[1644455193127,13.2118,113.6,113.54,49.36170097]
[1644455193328,4.402,113.61,113.54,49.33770097]
[1644455193526,44.0356,113.64,113.54,63.46870097]
[1644455193727,44.0356,113.64,113.54,63.49270097]
[1644455193926,44.59452979,113.63,113.54,63.49270097]
[1644455194229,33.78718054,113.61,113.54,59.09070097]
[1644455194431,33.78718054,113.61,113.54,49.36170097]
[1644455194831,46.99758054,113.61,113.54,49.36170097]
[1644455195429,13.2104,113.61,113.54,49.36170097]
[1644455197258,36.09912027,113.6,113.54,49.36170097]
[1644455198260,13.2104,113.61,113.54,49.36170097]
[1644455199162,58.29281196,113.61,113.54,49.36170097]
[1644455200668,4.402,113.6,113.54,49.36170097]
[1644455201066,33.29929837,113.59,113.54,13.2355]
[1644455201268,33.29929837,113.59,113.54,0.024]
[1644455201470,33.29929837,113.59,113.53,36.7597]
[1644455202170,33.29929837,113.59,113.54,40.51363742]
[1644455202367,33.29929837,113.59,113.54,40.53763742]
[1644455202769,46.51229837,113.59,113.54,40.53763742]
[1644455203169,13.213,113.59,113.54,40.53763742]
[1644455204374,4.402,113.63,113.54,53.74943742]
[1644455204573,5.65095243,113.65,113.55,4.401]
[1644455204875,5.65095243,113.65,113.56,24.6141]
[1644455205274,40.74790926,113.64,113.57,37.1343172]
[1644455205686,40.74790926,113.64,113.57,50.3426172]
[1644455205687,13.2083,113.63,113.57,50.3426172]
[1644455205873,13.2083,113.63,113.57,37.1343172]
[1644455206474,49.68155243,113.65,113.57,37.1343172]
[1644455206475,37.63380107,113.62,113.57,37.1343172]
[1644455206875,4.401,113.64,113.57,37.1343172]
[1644455207176,45.28055243,113.65,113.57,37.1343172]
[1644455207376,13.2101,113.62,113.57,37.1343172]
[1644455215887,51.68978091,113.62,113.57,37.1343172]
[1644455217792,13.2101,113.62,113.57,37.1343172]
[1644455221495,14.46005243,113.62,113.57,37.1343172]
[1644455221693,13.2101,113.62,113.57,37.1343172]
[1644455222299,14.46005243,113.62,113.57,37.1343172]
[1644455224821,13.96005243,113.62,113.57,37.1343172]
[1644455226122,12.7101,113.62,113.57,37.1343172]
[1644455229628,34.30328181,113.61,113.56,37.8237]
[1644455229826,47.51368181,113.61,113.56,37.8237]
[1644455230829,13.2104,113.61,113.56,37.8237]
[1644455231728,13.2104,113.61,113.56,86.6103239]
[1644455233531,13.2104,113.61,113.56,62.0202239]
[1644455233730,14.46035243,113.61,113.56,48.8106239]
[1644455234732,14.46035243,113.61,113.56,0.024]
[1644455234935,2.20548261,113.6,113.55,0.024]
[1644455235138,18.86595243,113.59,113.55,0.024]
[1644455235333,18.86595243,113.59,113.53,0.024]
[1644455235535,21.07143504,113.59,113.52,0.024]
[1644455235750,35.17020995,113.56,113.49,35.08950658]
[1644455235936,4.404,113.55,113.5,0.024]
[1644455236135,89.26886238,113.56,113.48,0.024]
[1644455236336,4.404,113.55,113.47,0.024]
[1644455236536,4.404,113.55,113.48,0.024]
[1644455236736,4.404,113.55,113.47,0.024]
[1644455236936,41.70344755,113.54,113.47,42.52038901]
[1644455237136,13.2202,113.53,113.48,13.2432]
[1644455237542,13.2202,113.53,113.49,41.35873859]
[1644455238350,13.2202,113.53,113.48,13.2192]
[1644455239442,13.2202,113.53,113.49,42.75880504]
[1644455241543,13.2202,113.53,113.48,13.2432]
[1644455242565,13.2202,113.53,113.48,50.51138221]
[1644455243165,44.0609,113.57,113.48,62.97138221]
[1644455243369,44.0609,113.57,113.5,13.2169]
[1644455243565,44.0609,113.57,113.51,0.024]
[1644455243765,48.4629,113.57,113.51,0.024]
[1644455243966,47.35322352,113.56,113.51,0.024]
[1644455244165,13.2169,113.55,113.5,47.06963516]
[1644455244765,13.2169,113.55,113.49,0.024]
[1644455245667,13.2169,113.55,113.49,37.58466511]
[1644455245970,13.2169,113.55,113.5,13.2171]
[1644455246169,17.6209,113.55,113.5,13.2411]
[1644455246467,31.02848681,113.54,113.5,13.2411]
[1644455247978,35.43248681,113.54,113.5,13.2411]
[1644455248880,31.02848681,113.54,113.5,13.2411]
[1644455249077,13.2169,113.55,113.5,13.2411]
[1644455249677,13.2169,113.55,113.5,0.024]
[1644455250277,17.6209,113.55,113.48,0.024]
[1644455250479,27.7689,113.55,113.48,0.024]
[1644455250678,13.2197,113.53,113.48,13.2432]
[1644455250879,13.2197,113.53,113.49,0.024]
[1644455251681,34.3470999,113.52,113.49,0.024]
[1644455251881,34.3470999,113.52,113.47,54.07551681]
[1644455252782,34.3470999,113.52,113.47,13.2444]
[1644455255887,47.5677999,113.52,113.47,13.2444]
[1644455258188,47.5677999,113.52,113.47,0.024]
[1644455259091,47.5677999,113.52,113.47,39.55055795]
[1644455261394,13.2207,113.52,113.47,39.55055795]
[1644455261794,13.2207,113.52,113.47,52.77135795]
[1644455261995,13.2197,113.53,113.47,52.77135795]
[1644455262198,13.2197,113.53,113.48,0.024]
[1644455262397,24.6942,113.55,113.47,56.41555795]
[1644455262594,24.6942,113.55,113.48,0.024]
[1644455262995,38.24706718,113.54,113.48,0.024]
[1644455263795,51.46566718,113.54,113.49,36.32646018]
[1644455263997,55.86966718,113.54,113.49,36.35046018]
[1644455264196,17.6226,113.54,113.49,36.35046018]
[1644455265198,59.4263448,113.54,113.49,36.35046018]
[1644455265398,59.4263448,113.54,113.49,0.024]
[1644455269199,17.6226,113.54,113.49,0.024]
[1644455269402,13.2186,113.54,113.49,0.024]
[1644455270101,60.47013403,113.54,113.49,0.024]
[1644455270503,64.87413403,113.54,113.49,0.024]
[1644455272005,60.47013403,113.54,113.49,0.024]
[1644455272203,13.2186,113.54,113.48,79.48401608]
[1644455273805,42.3156,113.55,113.48,79.48401608]
[1644455274004,5.65395243,113.57,113.51,13.216]
[1644455274204,1.24995243,113.57,113.51,13.24]
[1644455274408,5.65195243,113.57,113.51,13.216]
[1644455274603,42.46467975,113.56,113.51,50.76807659]
[1644455275409,5.65195243,113.57,113.51,50.76807659]
[1644455276029,4.402,113.57,113.51,50.76807659]
[1644455276431,13.2165,113.56,113.51,0.024]
[1644455276632,13.2165,113.56,113.5,0.024]
[1644455276832,14.46645243,113.56,113.5,0.024]
[1644455277234,13.2165,113.56,113.5,0.024]
[1644455278936,34.29787441,113.55,113.5,0.024]
[1644455279138,34.29787441,113.55,113.5,13.2415]
[1644455279837,47.51517441,113.55,113.5,13.2415]
[1644455280039,13.2173,113.55,113.51,47.28673981]
[1644455281437,13.2173,113.55,113.5,13.2415]
[1644455283841,40.47525487,113.54,113.5,13.2415]
[1644455284844,40.47525487,113.54,113.5,0.024]
[1644455286547,53.69395487,113.54,113.5,0.024]
[1644455286745,53.69395487,113.54,113.48,22.7627]
[1644455287147,58.09795487,113.54,113.48,22.7627]
[1644455287552,58.09795487,113.54,113.48,61.88887137]
[1644455287751,58.09795487,113.54,113.48,61.91287137]
[1644455290454,53.69395487,113.54,113.48,61.91287137]
[1644455291561,13.2207,113.52,113.48,61.91287137]
[1644455291758,13.2207,113.52,113.48,61.88887137]
[1644455293164,13.2207,113.52,113.48,22.7627]
[1644455293660,13.2207,113.52,113.47,13.2444]
[1644455294262,13.2207,113.52,113.47,51.38231751]
[1644455298080,1.24995243,113.55,113.48,4.405]
[1644455298284,1.24995243,113.55,113.49,24.8766]
[1644455298483,75.34218021,113.57,113.5,51.27027477]
[1644455298683,75.34218021,113.57,113.5,51.29427477]
[1644455299684,13.2163,113.56,113.5,51.29427477]
[1644455300685,14.46625243,113.56,113.5,51.29427477]
[1644455301486,33.06898255,113.55,113.5,38.07797477]
[1644455301686,13.2188,113.54,113.5,38.07797477]
[1644455304388,13.2177,113.55,113.5,51.29527477]
[1644455305593,52.01172221,113.55,113.5,51.29527477]
[1644455305992,52.01172221,113.55,113.5,38.07797477]
[1644455306997,13.2177,113.55,113.5,38.07797477]
[1644455307595,13.2163,113.56,113.51,4.404]
[1644455307996,13.2163,113.56,113.52,43.28152191]
[1644455310498,13.2153,113.57,113.52,56.49682191]
[1644455310708,29.57195243,113.58,113.52,56.49682191]
[1644455310709,5.65195243,113.58,113.52,56.49682191]
[1644455311002,1.24995243,113.59,113.52,56.49682191]
[1644455311200,1.24995243,113.6,113.52,60.89882191]
[1644455311406,1.24995243,113.6,113.52,73.35882191]
[1644455311612,5.65195243,113.62,113.53,24.481]
[1644455311801,1.24995243,113.62,113.55,13.2089]
[1644455312000,5.65195243,113.63,113.56,12.46]
[1644455312208,1.24995243,113.63,113.56,16.861]
[1644455312403,1.24995243,113.63,113.57,45.4213791]
[1644455312603,38.57189963,113.64,113.57,57.8813791]
[1644455312904,37.3219472,113.64,113.58,13.2071]
[1644455313102,38.57189963,113.64,113.57,57.8813791]
[1644455314308,37.3219472,113.64,113.57,57.8813791]
[1644455314507,18.85805243,113.65,113.57,71.0893791]
[1644455314807,24.1717,113.66,113.58,4.401]
[1644455314808,5.65095243,113.66,113.58,4.401]
[1644455315014,1.24995243,113.66,113.58,28.7064]
[1644455315211,1.24995243,113.66,113.58,41.1664]
[1644455315609,25.74915243,113.67,113.59,48.76134068]
[1644455315812,38.31133395,113.66,113.59,61.96714068]
[1644455316210,40.51681656,113.66,113.59,61.96714068]
[1644455316407,40.51681656,113.66,113.59,48.76134068]
[1644455316408,41.76676899,113.66,113.59,48.76134068]
[1644455316608,39.56128638,113.66,113.59,48.76134068]
[1644455317009,51.51723395,113.66,113.59,48.76134068]
[1644455317208,47.11723395,113.66,113.59,48.76134068]
[1644455318711,47.11723395,113.66,113.59,61.96714068]
[1644455320514,48.36718638,113.66,113.59,61.96714068]